Workbook

Sheet стр.1_2
BG6: УТВЕРЖДАЮ
BG7: Начальник Управления образования
BG8: (наименование должности лица, утверждающего документ)
BZ9: Л.И. Саулина
BG10: (подпись) | BZ10: (расшифровка подписи)
BM12: " | BO12: 01 | BS12: " | BV12: января | CK12: 20 | CO12: 17 | CS12: г.
A15: План финансово-хозяйственной деятельности
AD16: на 20 | AK16: 17 | AO16: год и плановый период | BQ16: 18-19
AK18: " | AM18: 01 | AQ18: " | AT18: января | BI18: 20 | BM18: 17 | BQ18: г.
CL20: КОДЫ
CJ21: Форма по КФД
CJ22: Дата | CL22: 01.01.2017
A25: Наименование муниципального учреждения (подразделения) | AL25: МБДОУ "Солнышко" | CJ25: по ОКПО | CL25: 44878413
A29: ИНН/КПП | AL29: 5826101322/582601001
A31: Единица измерения: руб. | CJ31: по ОКЕИ | CL31: 251
A33: Наименование органа, осуществляющего функции и полномочия учредителя | BD33: Управление образования администрации Никольского района Пензенской области
A35: Адрес фактического местонахождения муниципального учреждения (подразделения) | BD35: 442680 Пензенская область, Никольский р-он, с. Маис, ул. Центральная, д.25
B37: Сведения о деятельности муниципального учреждения
A39: 1. Цели деятельности Учреждения в соответствии с нормативными правовыми актами и уставом Учреждения.
A40: Охрана жизни и укрепление физического , психического здоровья детей, обеспечение позновательно-речевого, социально-личностного, художественно-эстетического и физического развития детей; воспитание с учетом возрастных категорий детей гражданственности, уважения к правам и свободам человека. любви к окружающей природе. родине, семье; взаимодействие с семьей для обеспечения полноценного развития ребенка; оказанте консультативной и методической помощи родителям(законным представителям) по вопросам воспитания, обучения и развития детей.
A41: 2. Виды деятельности Учреждения , относящиеся к его основным видам деятельности в соответствии с уставом Учреждения.
A42: предоставление дошкольного образования, воспитания, обучения и развития детей
A43: 3. Перечень услуг (работ), относящихся в соответствии с уставом к основным видам деятельности Учреждения , предоставление которых для физических и юридических лиц осуществляется в том числе за плату.
A45: 4. Общая балансовая стоимость недвижимого муниципального имущества на дату составления Плана, в том числе:
A46: стоимость имущества, закрепленного собственником имущества за учреждением на праве оперативного управления;
A47: стоимость имущества, приобретенного учреждением за счет выделенных собственником имущества учреждения средств;
A48: стоимость имущества, приобретенного учреждением за счет доходов, полученных полученных от иной приносящей доход деятельности.
A50: 5. Общая балансовая стоимость движимого муниципального имущества на дату составления Плана, в том числе:
A51: балансовая стоимость особо ценного движимого имущества.

Sheet стр.3_5
B1: I. Показатели финансового состояния Учреждения
AG2: на | AK2: 01 января | BK2: 20 | BO2: 17 | BS2: г.
BZ3: таблица 1
A4: № п/п | H4: Наименование показателя | CI4: Сумма, тыс. руб.
A5: 1 | H5: 2 | CI5: 3
I6: I. Нефинансовые активы, всего:
I7: из них:
I8: 1.1. Общая балансовая стоимость недвижимого муниципального имущества, всего
I9: в том числе: остаточная стоимость
I10: 1.2. Общая балансовая стоимость особо ценного движимого имущества
I11: в том числе: остаточная стоимость
I12: II. Финансовые активы, всего
I13: из них:
I14: 2.1. Денежные средства учреждения, всего
I15: в том числе: денежные средства учреждения на счетах
I16: 2.2. Денежные средства учреждения, размещенные на депозиты в кредитной организации
I17: 2.3. Иные финансовые инструменты
I18: 2.4. Дебиторская задолженность по доходам
I19: 2.5. Дебиторская задолженность по расходам
I20: III. Обязательства, всего
I21: из них: 3.1. Долговые обязательства
I22: 3.2. Кредиторская задолженность:
I23: в том числе: просроченная кредиторская задолженность

Sheet стр.6_11
B1: II. Показатели по поступлениям и выплатам Учреждения
BF2: на | BJ2: 01 января | CJ2: 20 | CN2: 17 | CR2: г.
DQ3: таблица 2
A4: Наименование показателя | V4: Код строки | AE4: Код по бюджетной классификации Российской Федерации | AR4: Объем финансового обеспечения, руб. (с точностью до двух знаков после запятой - 0,00)
AR5: всего | BH5: в том числе:
BH6: Субсидия на финансовое обеспечение выполнения государственного задания | BX6: Субсидии, представляемые в соответствии с абзацем вторым пункта 1 статьи 78.1 Бюджетного кодекса Российской Федерации | CN6: Субсидии на осуществление капитальных вложений | DD6: Средства обязательного медицинского страхования | DT6: Поступления от оказания услуг (выполнения работ) на платной основе и от иной приносящей доход деятельности
DT7: всего | EJ7: из них гранты
A8: 1 | V8: 2 | AE8: 3 | AR8: 4 | BH8: 5 | BX8: 6 | CN8: 7 | DD8: 8 | DT8: 9 | EJ8: 10
B9: Поступления от доходов, всего: | V9: 100 | AE9: Х | AR9: =SUM(BH9,BX9,DT9) -> 4195263 | BH9: =SUM(BH12,BH13) -> 3149366 | DT9: =DT13 -> 1045897
B10: в том числе: доходы от собственности | V10: 110 | AE10: 120 | AR10: 0 | BH10: Х | BX10: Х | CN10: Х | DD10: Х | DT10: 0 | EJ10: Х
B11: из них: | V11: Х
B12: 1.от аренды | AR12: 0 | DT12: 0
B13: Доходы от оказания услуг, работ | V13: 120 | AE13: 130 | AR13: =SUM(BH13,DT13) -> 4195263 | BH13: =SUM(BH15,BH16,BH17,BH18,BH19,BH20) -> 3149366 | BX13: Х | CN13: Х | DT13: =SUM(DT15:DT20) -> 1045897
B14: из них | V14: Х
B15: 1.субвенция | AR15: =SUM(BH15,DT15) -> 1958520 | BH15: 1958520
B16: 2. муниципальный бюджет | AR16: 1190846 | BH16: 1190846 | DT16: =SUM(BX16) -> 0
B17: 3.платные услуги | AR17: 0
B18: 4. возмещение ком. услуг | AR18: 268143 | DT18: 268143
B19: 5. род. плата | AR19: 777754 | DT19: 777754
AR20: 0 | DT20: 0
B21: Доходы от штра-фов, пеней, иных сумм принудите-льного изъятия | V21: 130 | BH21: Х | BX21: Х | CN21: Х | DD21: Х | EJ21: Х
B22: Безвозмездные поступления от наднациональных организаций, пра-вительств иност-ранных государ-ств, международ-ных финансовых организаций | V22: 140 | BH22: Х | BX22: Х | CN22: Х | DD22: Х | EJ22: Х
B23: Иные субсидии, предоставленные из бюджета | V23: 150 | AE23: 180 | AR23: =SUM(AR24,AR25) -> 0 | BH23: Х | BX23: =SUM(BX24,BX25) -> 0 | DD23: Х | DT23: Х | EJ23: Х
B24: 1. муниц.бюджет
B25: 2. муниц.бюджет (льготное питание)
B27: Прочие доходы | V27: 160 | BH27: Х | BX27: Х | CN27: Х | DD27: Х
B28: Доходы от операций с активами | V28: 180 | AE28: Х | BH28: Х | BX28: Х | CN28: Х | DD28: Х | EJ28: Х
V29: Х
B30: Выплаты по расходам, всего: | V30: 200 | AE30: Х | AR30: =SUM(AR31,AR41,AR43,AR50) -> 4195263 | BH30: =SUM(BH31,BH41,BH43,BH48,BH49,BH50,BH73,BH77,) -> 3149366 | BX30: =SUM(BX31,BX41,BX43,BX48,BX49,BX50,BX73,BX77,) -> 0 | DT30: =SUM(DT31,DT41,DT43,DT48,DT49,DT50,DT73,DT77,) -> 1045897
B31: в том числе на выплаты персоналу, всего: | V31: 210 | AR31: =SUM(BH31,BX31,DT31) -> 2788836 | BH31: =SUM(BH32,BH36) -> 2788836 | BX31: =SUM(BX32,BX36) -> 0 | DT31: =SUM(DT32,DT36) -> 0
B32: из них: оплата труда и | V32: 211 | AE32: 111 | AR32: =SUM(BH32,BX32,DT32) -> 2141964 | BH32: =SUM(BH33,BH35) -> 2141964 | BX32: =SUM(BX33,BX35) -> 0 | DT32: =SUM(DT33,DT35,DT34) -> 0
B33: 1. субвенция | AR33: 1491140 | BH33: 1491140
A34: 2. платные услуги | AR34: =SUM(BH34,BX34,DT34) -> 0
B35: 3. муниц.бюджет | AR35: 650824 | BH35: 650824
B36: начисления на оплату труда | AE36: 119 | AR36: 646872 | BH36: =SUM(BH37,BH39) -> 646872 | BX36: =SUM(BX37,BX39) -> 0 | DT36: =SUM(DT37,DT39,DT38) -> 0
B37: 1. субвенция | AR37: 450323 | BH37: 450323
A38: 2. платные услуги | AR38: =SUM(BH38,BX38,DT38) -> 0
B39: 3. муниц.бюджет | AR39: 196549 | BH39: 196549
B40: Прочие выплаты | V40: 212
B41: Социальные и иные выплаты населению, всего | V41: 220
B42: из них:
B43: Уплата налогов, сборов и иных платежей, всего | V43: 230 | AR43: =SUM(BH43,BX43,DT43) -> 23175 | BH43: =SUM(BH45,BH46,BH47) -> 23175 | BX43: =SUM(BX45,BX46,BX47) -> 0 | DT43: =SUM(DT45,DT46,DT47) -> 0
B44: из них:
B45: налог на иму-щество, землю | AE45: 851 | AR45: =SUM(BH45,BX45,DT45) -> 23175 | BH45: 23175
B46: транспортный | AE46: 852 | AR46: =SUM(BH46,BX46,DT46) -> 0
B47: пени, штрафы | AE47: 853 | AR47: =SUM(BH47,BX47,DT47) -> 0
B48: Безвозмездные перечисления организациям | V48: 240
B49: Прочие расходы (кроме расходов на закупку товаров, работ, услуг) | V49: 250
B50: Расходы на закупку товаров, работ, услуг, всего | V50: 260 | AE50: 244 | AR50: =SUM(BH50,BX50,DT50) -> 1383252 | BH50: =SUM(BH52,BH55,BH56,BH59,BH62,BH66,BH68) -> 337355 | BX50: =SUM(BX52,BX55,BX56,BX59,BX62,BX66,BX68) -> 0 | DT50: =SUM(DT52,DT55,DT56,DT59,DT62,DT66,DT68) -> 1045897
B51: из них:
B52: 1. услуги связи | AR52: =SUM(BH52,BX52,DT52) -> 0 | BH52: =SUM(BH53,BH54) -> 0 | BX52: =SUM(BX53,BX54) -> 0 | DT52: =SUM(DT53,DT54) -> 0
B53: субвенция | AR53: 0
B54: муниц.бюджет | AR54: 0
B55: 2. транспортные услуги | AR55: 0
B56: 3. коммунальные услуги | AR56: 371225 | BH56: =SUM(BH57,BH58) -> 103082 | BX56: =SUM(BX57,BX58) -> 0 | DT56: =SUM(DT57,DT58) -> 268143
B57: муниц.бюджет | AR57: 103082 | BH57: 103082
B58: возмещение ком. услуг | AR58: 268143 | DT58: 268143
B59: 4. услуги по содер-жанию имущества | AR59: 0 | BH59: =SUM(BH61) -> 0 | BX59: =SUM(BX61) -> 0 | DT59: =SUM(DT61,DT60) -> 0
A60: 1. платные услуги | AR60: =DT60 -> 0
B61: 2. муниц.бюджет | AR61: 0
B62: 5. прочие услуги, работы | AR62: 1793 | BH62: =SUM(BH63:BH65) -> 1793 | DT62: =SUM(DT63:DT65) -> 0
B63: 1. муниц.бюджет | AR63: 0
B64: 2. платные услуги | AR64: 0
B65: субвенция | AR65: 1793 | BH65: 1793
B66: 6. увел-ие ст-ти осн.фондов | AR66: 0 | DT66: =DT67 -> 0
B67: 1. платные услуги | AR67: =SUM(BH67,BX67,DT67) -> 0
B68: 7. увел-ие ст-ти мат.запасов | AR68: 1010234 | BH68: =SUM(BH69:BW72) -> 232480 | BX68: =SUM(BX69:CM72) -> 0 | DT68: =SUM(DT69:EI72) -> 777754
B69: субвенция | AR69: 15264 | BH69: 15264
A70: родительская плата | AR70: =SUM(BH70,BX70,DT70) -> 777754 | DT70: 777754
A71: платные услуги | AR71: =SUM(BH71,BX71,DT71) -> 0
B72: муниц.бюджет | AR72: 217216 | BH72: 217216
B73: Поступление финансовых активов, всего: | V73: 300 | AE73: Х
B74: из них: | V74: Х
B75: Увеличение остатков средств | V75: 310
B76: Прочие поступления | V76: 320
B77: Выбытие финансовых активов, всего | V77: 400
B78: Из них: уменьшение остатков средств | V78: 410
B79: Прочие выбытия | V79: 420
B80: Остаток средств на начало года | V80: 500 | AE80: Х
B81: Остаток средств на конец года | V81: 600 | AE81: Х

Sheet стр.12
B1: II.I. Показатели выплат по расходам на закупку товаров, работ, услуг Учреждения
BF2: на | BJ2: 01 января | CJ2: 20 | CN2: 17 | CR2: г.
DU3: таблица 2.1.
A4: Наименование показателя | AG4: Код строки | AN4: Год начала закупки | AV4: Сумма выплат по расходам на закупку товаров, работ и услуг, руб. (с точностью до двух знаков после запятой - 0,00)
AV5: всего на закупки | CF5: в том числе:
CF6: в соответствии с Федеральным законом от 5 апреля 2013 г. № 44-ФЗ "О контрактной системе в сфере закупок товаров, работ, услуг для обеспечения государст-венных и муниципальных нужд" | DP6: в соответствии с Федеральным законом от 18 июля 2011 г. № 223-ФЗ "О закупках товаров, работ, услуг отдельными видами юридических лиц"
AV7: г. | AZ7: очередной финансовый год | BH7: г. | BL7: 1-ый год планового периода | BT7: г. | BX7: 2-ой год планового периода | CF7: г. | CJ7: очередной финансовый год | CR7: г. | CV7: 1-ый год планового периода | DD7: г. | DH7: 2-ой год планового периода | DP7: г. | DT7: очередной финансовый год | EB7: г. | EF7: 1-ый год планового периода | EN7: г. | ER7: 2-ой год планового периода
AV8: 17 | CF8: 17 | DP8: 17
AV9: на 20 | BH9: на 20 | BT9: на 20 | CF9: на 20 | CR9: на 20 | DD9: на 20 | DP9: на 20 | EB9: на 20 | EN9: на 20
A10: 1 | AG10: 2 | AN10: 3 | AV10: 4 | BH10: 5 | BT10: 6 | CF10: 7 | CR10: 8 | DD10: 9 | DP10: 10 | EB10: 11 | EN10: 12
B11: Выплаты по расходам на закупку товаров, работ, услуг всего: | AG11: 0001 | AN11: Х | AV11: =CF11+DP11 -> 1383252 | CF11: 337355 | DP11: 1045897
B12: В том числе: на оплату контрактов, заключенных до начала очередного финансового года: | AG12: 1001 | AN12: Х
B13: из них: | AG13: Х
B14: 1. | AG14: 1002
B15: 2. | AG15: 1003
B16: На закупку товаров, работ, услуг по году начала закупки: | AG16: 2001 | AV16: =CF16+DP16 -> 1383252 | CF16: 337355 | DP16: 1045897
B17: из них: | AG17: Х
B18: 1. | AG18: 2002
B19: 2. | AG19: 2003

Sheet стр.13
B1: III. Сведения о средствах, поступающих во временное распоряжение Учреждения
W2: на | AA2: 01 января | BU2: 20 | BY2: 17 | CC2: г.
AA3: (очередной финансовый год)
BW4: таблица 3
A5: Наименование показателя | AM5: Код строки | BT5: Сумма (руб. с точностью до двух знаков после запятой - 0,00)
A6: 1 | AM6: 2 | BT6: 3
B7: Остаток средств на начало года | AM7: 010
B8: Остаток средств на конец года | AM8: 020
B9: Поступление | AM9: 030
B10: Выбытие | AM10: 040
A12: IV. Справочная информация
BX13: таблица 4
A14: Наименование показателя | AM14: Код строки | BT14: Сумма (тыс. руб.)
A15: 1 | AM15: 2 | BT15: 3
B16: Объем публичных обязательств, всего: | AM16: 010
B17: Объем бюджетных инвестиций (в части переданных полномочий государственного заказчика в соответствии с Бюджетным кодексом Российской Федерации), всего: | AM17: 020
B18: Объем средств, поступивших во временное распоряжение, всего: | AM18: 030
B20: Руководитель муниципального учреждения
B21: (подразделения) (уполномоченное лицо) | BT21: Н.С.Юсяева
AX22: (подпись) | BT22: (расшифровка подписи)
B23: Заместитель руководителя государственного
B24: учреждения (подразделения)
B25: по финансовым вопросам
AX26: (подпись) | BT26: (расшифровка подписи)
B27: Бухгалтер
B28: учреждения (подразделения) | BT28: Т.М.Каткова
AX29: (подпись) | BT29: (расшифровка подписи)
B30: Исполнитель | BT30: Т.М.Каткова
AX31: (подпись) | BT31: (расшифровка подписи)
B32: Тел.
B34: " | D34: 01 | H34: " | K34: января | AC34: 20 | AG34: 17 | AK34: г.
